Workbook

Sheet Correcties op staffel (hidden)
A2: Staffel 2016, 2017 en 2018
A3: Gebaseerd op staffel 2015, rekening houdend met onderstaande:
A5: schadecategorie, vanaf …tot | B5: Vermenigvuldigen met | C5: plus
A6: 0 | B6: -0.2 | C6: 0
A7: 3000 | B7: -0.15 | C7: 0
A8: 5000 | B8: 0 | C8: -125
A9: 10000 | B9: 0.1 | C9: -125
A10: 30000 | B10: 0 | C10: 0

Sheet kosten tabel 2016
A1: schadebedrag | B1: Kosten volgens tabel 2015 inclusief €225 (excl. BTW) in zaken >3000 <=50.000, daarna aflopend | D1: Hulpkolommen ter berekening | H1: schadebedrag | I1: Kosten volgens tabel 2016 inclusief €225 (excl. BTW) in zaken >3000 <=50.000, daarna aflopend | L1: schadebedrag | M1: Kosten volgens tabel 2016 inclusief €225 (excl. BTW) in zaken >3000 <=50.000, daarna aflopend, afgerond naar boven op 5 euro | P1: schadebedrag | Q1: 999999
B2: Excl. BTW | C2: Incl. BTW 21% | F2: na aanpassing voorstellen dec 2015 | G2: =82/(5800/100) -> 1.413793103 | I2: Excl. BTW | J2: incl. BTW | M2: Excl. BTW | N2: incl. BTW | Q2: excl btw | R2: incl btw
A3: euro | D3: multiplier | E3: plus | F3: BGK | H3: euro | L3: euro | P3: bgk | Q3: ='Berekening BGK'!C9 -> invoer onjuist | R3: ='Berekening BGK'!C10 -> invoer onjuist
A4: 100 | B4: 600 | C4: 726 | D4: =VLOOKUP(A4,'Correcties op staffel'!$A$5:$C$10,2) -> -0.2 | E4: =VLOOKUP(A4,'Correcties op staffel'!$A$5:$C$10,3) -> 0 | F4: =B4*(1+D4)+E4 -> 480 | H4: 100 | I4: =ROUND(F4,0) -> 480 | J4: =I4*1.21 -> 580.8 | L4: 100 | M4: =IF(ROUND(I4/5,0)*5<I4,ROUND(I4/5,0)*5+5,ROUND(I4/5,0)*5) -> 480 | N4: =M4*1.21 -> 580.8
A5: =A4+100 -> 200 | B5: 600 | C5: 726 | D5: =VLOOKUP(A5,'Correcties op staffel'!$A$5:$C$10,2) -> -0.2 | E5: =VLOOKUP(A5,'Correcties op staffel'!$A$5:$C$10,3) -> 0 | F5: 480 | H5: =H4+100 -> 200 | I5: 480 | J5: =I5*1.21 -> 580.8 | L5: 200 | M5: =IF(ROUND(I5/5,0)*5<I5,ROUND(I5/5,0)*5+5,ROUND(I5/5,0)*5) -> 480 | N5: =M5*1.21 -> 580.8
A6: =A5+100 -> 300 | B6: 600 | C6: 726 | D6: =VLOOKUP(A6,'Correcties op staffel'!$A$5:$C$10,2) -> -0.2 | E6: =VLOOKUP(A6,'Correcties op staffel'!$A$5:$C$10,3) -> 0 | F6: 480 | H6: =H5+100 -> 300 | I6: 480 | J6: 580.8 | L6: 300 | M6: 480 | N6: 580.8
A7: =A6+100 -> 400 | B7: 600 | C7: 726 | D7: =VLOOKUP(A7,'Correcties op staffel'!$A$5:$C$10,2) -> -0.2 | E7: =VLOOKUP(A7,'Correcties op staffel'!$A$5:$C$10,3) -> 0 | F7: 480 | H7: =H6+100 -> 400 | I7: 480 | J7: 580.8 | L7: 400 | M7: 480 | N7: 580.8
A8: =A7+100 -> 500 | B8: 700 | C8: 847 | D8: =VLOOKUP(A8,'Correcties op staffel'!$A$5:$C$10,2) -> -0.2 | E8: =VLOOKUP(A8,'Correcties op staffel'!$A$5:$C$10,3) -> 0 | F8: 560 | H8: =H7+100 -> 500 | I8: 560 | J8: 677.6 | L8: 500 | M8: 560 | N8: 677.6
A9: =A8+100 -> 600 | B9: 800 | C9: 968 | D9: =VLOOKUP(A9,'Correcties op staffel'!$A$5:$C$10,2) -> -0.2 | E9: =VLOOKUP(A9,'Correcties op staffel'!$A$5:$C$10,3) -> 0 | F9: 640 | H9: =H8+100 -> 600 | I9: 640 | J9: 774.4 | L9: 600 | M9: 640 | N9: 774.4
A10: =A9+100 -> 700 | B10: 900 | C10: 1089 | D10: =VLOOKUP(A10,'Correcties op staffel'!$A$5:$C$10,2) -> -0.2 | E10: =VLOOKUP(A10,'Correcties op staffel'!$A$5:$C$10,3) -> 0 | F10: 720 | H10: =H9+100 -> 700 | I10: 720 | J10: 871.2 | L10: 700 | M10: 720 | N10: 871.2
A11: 800 | B11: 900 | C11: 1089 | D11: =VLOOKUP(A11,'Correcties op staffel'!$A$5:$C$10,2) -> -0.2 | E11: =VLOOKUP(A11,'Correcties op staffel'!$A$5:$C$10,3) -> 0 | F11: 720 | H11: 800 | I11: 720 | J11: 871.2 | L11: 800 | M11: 720 | N11: 871.2
A12: 900 | B12: 1000 | C12: 1210 | D12: =VLOOKUP(A12,'Correcties op staffel'!$A$5:$C$10,2) -> -0.2 | E12: =VLOOKUP(A12,'Correcties op staffel'!$A$5:$C$10,3) -> 0 | F12: 800 | H12: 900 | I12: 800 | J12: 968 | L12: 900 | M12: 800 | N12: 968
A13: 1000 | B13: 1000 | C13: 1210 | D13: =VLOOKUP(A13,'Correcties op staffel'!$A$5:$C$10,2) -> -0.2 | E13: =VLOOKUP(A13,'Correcties op staffel'!$A$5:$C$10,3) -> 0 | F13: 800 | H13: 1000 | I13: 800 | J13: 968 | L13: 1000 | M13: 800 | N13: 968
A14: 1100 | B14: 1000 | C14: 1210 | D14: =VLOOKUP(A14,'Correcties op staffel'!$A$5:$C$10,2) -> -0.2 | E14: =VLOOKUP(A14,'Correcties op staffel'!$A$5:$C$10,3) -> 0 | F14: 800 | H14: 1100 | I14: 800 | J14: 968 | L14: 1100 | M14: 800 | N14: 968
A15: 1200 | B15: 1100 | C15: 1331 | D15: =VLOOKUP(A15,'Correcties op staffel'!$A$5:$C$10,2) -> -0.2 | E15: =VLOOKUP(A15,'Correcties op staffel'!$A$5:$C$10,3) -> 0 | F15: 880 | H15: 1200 | I15: 880 | J15: 1064.8 | L15: 1200 | M15: 880 | N15: 1064.8
A16: 1300 | B16: 1100 | C16: 1331 | D16: =VLOOKUP(A16,'Correcties op staffel'!$A$5:$C$10,2) -> -0.2 | E16: =VLOOKUP(A16,'Correcties op staffel'!$A$5:$C$10,3) -> 0 | F16: 880 | H16: 1300 | I16: 880 | J16: 1064.8 | L16: 1300 | M16: 880 | N16: 1064.8
A17: 1400 | B17: 1200 | C17: 1452 | D17: =VLOOKUP(A17,'Correcties op staffel'!$A$5:$C$10,2) -> -0.2 | E17: =VLOOKUP(A17,'Correcties op staffel'!$A$5:$C$10,3) -> 0 | F17: 960 | H17: 1400 | I17: 960 | J17: 1161.6 | L17: 1400 | M17: 960 | N17: 1161.6
A18: 1500 | B18: 1200 | C18: 1452 | D18: =VLOOKUP(A18,'Correcties op staffel'!$A$5:$C$10,2) -> -0.2 | E18: =VLOOKUP(A18,'Correcties op staffel'!$A$5:$C$10,3) -> 0 | F18: 960 | H18: 1500 | I18: 960 | J18: 1161.6 | L18: 1500 | M18: 960 | N18: 1161.6
A19: 1600 | B19: 1200 | C19: 1452 | D19: =VLOOKUP(A19,'Correcties op staffel'!$A$5:$C$10,2) -> -0.2 | E19: =VLOOKUP(A19,'Correcties op staffel'!$A$5:$C$10,3) -> 0 | F19: 960 | H19: 1600 | I19: 960 | J19: 1161.6 | L19: 1600 | M19: 960 | N19: 1161.6
A20: 1700 | B20: 1300 | C20: 1573 | D20: =VLOOKUP(A20,'Correcties op staffel'!$A$5:$C$10,2) -> -0.2 | E20: =VLOOKUP(A20,'Correcties op staffel'!$A$5:$C$10,3) -> 0 | F20: 1040 | H20: 1700 | I20: 1040 | J20: 1258.4 | L20: 1700 | M20: 1040 | N20: 1258.4
A21: 1800 | B21: 1300 | C21: 1573 | D21: =VLOOKUP(A21,'Correcties op staffel'!$A$5:$C$10,2) -> -0.2 | E21: =VLOOKUP(A21,'Correcties op staffel'!$A$5:$C$10,3) -> 0 | F21: 1040 | H21: 1800 | I21: 1040 | J21: 1258.4 | L21: 1800 | M21: 1040 | N21: 1258.4
A22: 1900 | B22: 1300 | C22: 1573 | D22: =VLOOKUP(A22,'Correcties op staffel'!$A$5:$C$10,2) -> -0.2 | E22: =VLOOKUP(A22,'Correcties op staffel'!$A$5:$C$10,3) -> 0 | F22: 1040 | H22: 1900 | I22: 1040 | J22: 1258.4 | L22: 1900 | M22: 1040 | N22: 1258.4
A23: 2000 | B23: 1400 | C23: 1694 | D23: =VLOOKUP(A23,'Correcties op staffel'!$A$5:$C$10,2) -> -0.2 | E23: =VLOOKUP(A23,'Correcties op staffel'!$A$5:$C$10,3) -> 0 | F23: 1120 | H23: 2000 | I23: 1120 | J23: 1355.2 | L23: 2000 | M23: 1120 | N23: 1355.2
A24: 2100 | B24: 1400 | C24: 1694 | D24: =VLOOKUP(A24,'Correcties op staffel'!$A$5:$C$10,2) -> -0.2 | E24: =VLOOKUP(A24,'Correcties op staffel'!$A$5:$C$10,3) -> 0 | F24: 1120 | H24: 2100 | I24: 1120 | J24: 1355.2 | L24: 2100 | M24: 1120 | N24: 1355.2
A25: 2200 | B25: 1400 | C25: 1694 | D25: =VLOOKUP(A25,'Correcties op staffel'!$A$5:$C$10,2) -> -0.2 | E25: =VLOOKUP(A25,'Correcties op staffel'!$A$5:$C$10,3) -> 0 | F25: 1120 | H25: 2200 | I25: 1120 | J25: 1355.2 | L25: 2200 | M25: 1120 | N25: 1355.2
A26: 2300 | B26: 1500 | C26: 1815 | D26: =VLOOKUP(A26,'Correcties op staffel'!$A$5:$C$10,2) -> -0.2 | E26: =VLOOKUP(A26,'Correcties op staffel'!$A$5:$C$10,3) -> 0 | F26: 1200 | H26: 2300 | I26: 1200 | J26: 1452 | L26: 2300 | M26: 1200 | N26: 1452
A27: 2400 | B27: 1500 | C27: 1815 | D27: =VLOOKUP(A27,'Correcties op staffel'!$A$5:$C$10,2) -> -0.2 | E27: =VLOOKUP(A27,'Correcties op staffel'!$A$5:$C$10,3) -> 0 | F27: 1200 | H27: 2400 | I27: 1200 | J27: 1452 | L27: 2400 | M27: 1200 | N27: 1452
A28: 2500 | B28: 1500 | C28: 1815 | D28: =VLOOKUP(A28,'Correcties op staffel'!$A$5:$C$10,2) -> -0.2 | E28: =VLOOKUP(A28,'Correcties op staffel'!$A$5:$C$10,3) -> 0 | F28: 1200 | H28: 2500 | I28: 1200 | J28: 1452 | L28: 2500 | M28: 1200 | N28: 1452
A29: 2600 | B29: 1600 | C29: 1936 | D29: =VLOOKUP(A29,'Correcties op staffel'!$A$5:$C$10,2) -> -0.2 | E29: =VLOOKUP(A29,'Correcties op staffel'!$A$5:$C$10,3) -> 0 | F29: 1280 | H29: 2600 | I29: 1280 | J29: 1548.8 | L29: 2600 | M29: 1280 | N29: 1548.8
A30: 2700 | B30: 1600 | C30: 1936 | D30: =VLOOKUP(A30,'Correcties op staffel'!$A$5:$C$10,2) -> -0.2 | E30: =VLOOKUP(A30,'Correcties op staffel'!$A$5:$C$10,3) -> 0 | F30: 1280 | H30: 2700 | I30: 1280 | J30: 1548.8 | L30: 2700 | M30: 1280 | N30: 1548.8
A31: 2800 | B31: 1600 | C31: 1936 | D31: =VLOOKUP(A31,'Correcties op staffel'!$A$5:$C$10,2) -> -0.2 | E31: =VLOOKUP(A31,'Correcties op staffel'!$A$5:$C$10,3) -> 0 | F31: 1280 | H31: 2800 | I31: 1280 | J31: 1548.8 | L31: 2800 | M31: 1280 | N31: 1548.8
A32: 2900 | B32: 1600 | C32: 1936 | D32: =VLOOKUP(A32,'Correcties op staffel'!$A$5:$C$10,2) -> -0.2 | E32: =VLOOKUP(A32,'Correcties op staffel'!$A$5:$C$10,3) -> 0 | F32: 1280 | H32: 2900 | I32: 1280 | J32: 1548.8 | L32: 2900 | M32: 1280 | N32: 1548.8
A33: 3000 | B33: 1700 | C33: 2057 | D33: =VLOOKUP(A33,'Correcties op staffel'!$A$5:$C$10,2) -> -0.15 | E33: =VLOOKUP(A33,'Correcties op staffel'!$A$5:$C$10,3) -> 0 | F33: 1445 | H33: 3000 | I33: 1445 | J33: 1748.45 | L33: 3000 | M33: 1445 | N33: 1748.45
A34: 3100 | B34: 1925 | C34: 2329.25 | D34: =VLOOKUP(A34,'Correcties op staffel'!$A$5:$C$10,2) -> -0.15 | E34: =VLOOKUP(A34,'Correcties op staffel'!$A$5:$C$10,3) -> 0 | F34: 1636.25 | H34: 3100 | I34: 1636 | J34: 1979.56 | L34: 3100 | M34: 1640 | N34: 1984.4
A35: 3200 | B35: 1925 | C35: 2329.25 | D35: =VLOOKUP(A35,'Correcties op staffel'!$A$5:$C$10,2) -> -0.15 | E35: =VLOOKUP(A35,'Correcties op staffel'!$A$5:$C$10,3) -> 0 | F35: 1636.25 | H35: 3200 | I35: 1636 | J35: 1979.56 | L35: 3200 | M35: 1640 | N35: 1984.4
A36: 3300 | B36: 1925 | C36: 2329.25 | D36: =VLOOKUP(A36,'Correcties op staffel'!$A$5:$C$10,2) -> -0.15 | E36: =VLOOKUP(A36,'Correcties op staffel'!$A$5:$C$10,3) -> 0 | F36: 1636.25 | H36: 3300 | I36: 1636 | J36: 1979.56 | L36: 3300 | M36: 1640 | N36: 1984.4
A37: 3400 | B37: 2025 | C37: 2450.25 | D37: =VLOOKUP(A37,'Correcties op staffel'!$A$5:$C$10,2) -> -0.15 | E37: =VLOOKUP(A37,'Correcties op staffel'!$A$5:$C$10,3) -> 0 | F37: 1721.25 | H37: 3400 | I37: 1721 | J37: 2082.41 | L37: 3400 | M37: 1725 | N37: 2087.25
A38: 3500 | B38: 2025 | C38: 2450.25 | D38: =VLOOKUP(A38,'Correcties op staffel'!$A$5:$C$10,2) -> -0.15 | E38: =VLOOKUP(A38,'Correcties op staffel'!$A$5:$C$10,3) -> 0 | F38: 1721.25 | H38: 3500 | I38: 1721 | J38: 2082.41 | L38: 3500 | M38: 1725 | N38: 2087.25
A39: 3600 | B39: 2025 | C39: 2450.25 | D39: =VLOOKUP(A39,'Correcties op staffel'!$A$5:$C$10,2) -> -0.15 | E39: =VLOOKUP(A39,'Correcties op staffel'!$A$5:$C$10,3) -> 0 | F39: 1721.25 | H39: 3600 | I39: 1721 | J39: 2082.41 | L39: 3600 | M39: 1725 | N39: 2087.25
A40: 3700 | B40: 2025 | C40: 2450.25 | D40: =VLOOKUP(A40,'Correcties op staffel'!$A$5:$C$10,2) -> -0.15 | E40: =VLOOKUP(A40,'Correcties op staffel'!$A$5:$C$10,3) -> 0 | F40: 1721.25 | H40: 3700 | I40: 1721 | J40: 2082.41 | L40: 3700 | M40: 1725 | N40: 2087.25
A41: 3800 | B41: 2125 | C41: 2571.25 | D41: =VLOOKUP(A41,'Correcties op staffel'!$A$5:$C$10,2) -> -0.15 | E41: =VLOOKUP(A41,'Correcties op staffel'!$A$5:$C$10,3) -> 0 | F41: 1806.25 | H41: 3800 | I41: 1806 | J41: 2185.26 | L41: 3800 | M41: 1810 | N41: 2190.1
A42: 3900 | B42: 2125 | C42: 2571.25 | D42: =VLOOKUP(A42,'Correcties op staffel'!$A$5:$C$10,2) -> -0.15 | E42: =VLOOKUP(A42,'Correcties op staffel'!$A$5:$C$10,3) -> 0 | F42: 1806.25 | H42: 3900 | I42: 1806 | J42: 2185.26 | L42: 3900 | M42: 1810 | N42: 2190.1
A43: 4000 | B43: 2125 | C43: 2571.25 | D43: =VLOOKUP(A43,'Correcties op staffel'!$A$5:$C$10,2) -> -0.15 | E43: =VLOOKUP(A43,'Correcties op staffel'!$A$5:$C$10,3) -> 0 | F43: 1806.25 | H43: 4000 | I43: 1806 | J43: 2185.26 | L43: 4000 | M43: 1810 | N43: 2190.1
A44: 4100 | B44: 2125 | C44: 2571.25 | D44: =VLOOKUP(A44,'Correcties op staffel'!$A$5:$C$10,2) -> -0.15 | E44: =VLOOKUP(A44,'Correcties op staffel'!$A$5:$C$10,3) -> 0 | F44: 1806.25 | H44: 4100 | I44: 1806 | J44: 2185.26 | L44: 4100 | M44: 1810 | N44: 2190.1
A45: 4200 | B45: 2225 | C45: 2692.25 | D45: =VLOOKUP(A45,'Correcties op staffel'!$A$5:$C$10,2) -> -0.15 | E45: =VLOOKUP(A45,'Correcties op staffel'!$A$5:$C$10,3) -> 0 | F45: 1891.25 | H45: 4200 | I45: 1891 | J45: 2288.11 | L45: 4200 | M45: 1895 | N45: 2292.95
A46: 4300 | B46: 2225 | C46: 2692.25 | D46: =VLOOKUP(A46,'Correcties op staffel'!$A$5:$C$10,2) -> -0.15 | E46: =VLOOKUP(A46,'Correcties op staffel'!$A$5:$C$10,3) -> 0 | F46: 1891.25 | H46: 4300 | I46: 1891 | J46: 2288.11 | L46: 4300 | M46: 1895 | N46: 2292.95
A47: 4400 | B47: 2225 | C47: 2692.25 | D47: =VLOOKUP(A47,'Correcties op staffel'!$A$5:$C$10,2) -> -0.15 | E47: =VLOOKUP(A47,'Correcties op staffel'!$A$5:$C$10,3) -> 0 | F47: 1891.25 | H47: 4400 | I47: 1891 | J47: 2288.11 | L47: 4400 | M47: 1895 | N47: 2292.95
A48: 4500 | B48: 2225 | C48: 2692.25 | D48: =VLOOKUP(A48,'Correcties op staffel'!$A$5:$C$10,2) -> -0.15 | E48: =VLOOKUP(A48,'Correcties op staffel'!$A$5:$C$10,3) -> 0 | F48: 1891.25 | H48: 4500 | I48: 1891 | J48: 2288.11 | L48: 4500 | M48: 1895 | N48: 2292.95
A49: 4600 | B49: 2225 | C49: 2692.25 | D49: =VLOOKUP(A49,'Correcties op staffel'!$A$5:$C$10,2) -> -0.15 | E49: =VLOOKUP(A49,'Correcties op staffel'!$A$5:$C$10,3) -> 0 | F49: 1891.25 | H49: 4600 | I49: 1891 | J49: 2288.11 | L49: 4600 | M49: 1895 | N49: 2292.95
A50: 4700 | B50: 2325 | C50: 2813.25 | D50: =VLOOKUP(A50,'Correcties op staffel'!$A$5:$C$10,2) -> -0.15 | E50: =VLOOKUP(A50,'Correcties op staffel'!$A$5:$C$10,3) -> 0 | F50: 1976.25 | H50: 4700 | I50: 1976 | J50: 2390.96 | L50: 4700 | M50: 1980 | N50: 2395.8
A51: 4800 | B51: 2325 | C51: 2813.25 | D51: =VLOOKUP(A51,'Correcties op staffel'!$A$5:$C$10,2) -> -0.15 | E51: =VLOOKUP(A51,'Correcties op staffel'!$A$5:$C$10,3) -> 0 | F51: 1976.25 | H51: 4800 | I51: 1976 | J51: 2390.96 | L51: 4800 | M51: 1980 | N51: 2395.8
A52: 4900 | B52: 2325 | C52: 2813.25 | D52: =VLOOKUP(A52,'Correcties op staffel'!$A$5:$C$10,2) -> -0.15 | E52: =VLOOKUP(A52,'Correcties op staffel'!$A$5:$C$10,3) -> 0 | F52: 1976.25 | H52: 4900 | I52: 1976 | J52: 2390.96 | L52: 4900 | M52: 1980 | N52: 2395.8
A53: 5000 | B53: 2325 | C53: 2813.25 | D53: =VLOOKUP(A53,'Correcties op staffel'!$A$5:$C$10,2) -> 0 | E53: =VLOOKUP(A53,'Correcties op staffel'!$A$5:$C$10,3) -> -125 | F53: 2200 | H53: 5000 | I53: 2200 | J53: 2662 | L53: 5000 | M53: 2200 | N53: 2662
A54: 5100 | B54: 2325 | C54: 2813.25 | D54: =VLOOKUP(A54,'Correcties op staffel'!$A$5:$C$10,2) -> 0 | E54: =VLOOKUP(A54,'Correcties op staffel'!$A$5:$C$10,3) -> -125 | F54: 2200 | H54: 5100 | I54: 2200 | J54: 2662 | L54: 5100 | M54: 2200 | N54: 2662
A55: 5200 | B55: 2425 | C55: 2934.25 | D55: =VLOOKUP(A55,'Correcties op staffel'!$A$5:$C$10,2) -> 0 | E55: =VLOOKUP(A55,'Correcties op staffel'!$A$5:$C$10,3) -> -125 | F55: 2300 | H55: 5200 | I55: 2300 | J55: 2783 | L55: 5200 | M55: 2300 | N55: 2783
A56: 5300 | B56: 2425 | C56: 2934.25 | D56: =VLOOKUP(A56,'Correcties op staffel'!$A$5:$C$10,2) -> 0 | E56: =VLOOKUP(A56,'Correcties op staffel'!$A$5:$C$10,3) -> -125 | F56: 2300 | H56: 5300 | I56: 2300 | J56: 2783 | L56: 5300 | M56: 2300 | N56: 2783
A57: 5400 | B57: 2425 | C57: 2934.25 | D57: =VLOOKUP(A57,'Correcties op staffel'!$A$5:$C$10,2) -> 0 | E57: =VLOOKUP(A57,'Correcties op staffel'!$A$5:$C$10,3) -> -125 | F57: 2300 | H57: 5400 | I57: 2300 | J57: 2783 | L57: 5400 | M57: 2300 | N57: 2783
A58: 5500 | B58: 2425 | C58: 2934.25 | D58: =VLOOKUP(A58,'Correcties op staffel'!$A$5:$C$10,2) -> 0 | E58: =VLOOKUP(A58,'Correcties op staffel'!$A$5:$C$10,3) -> -125 | F58: 2300 | H58: 5500 | I58: 2300 | J58: 2783 | L58: 5500 | M58: 2300 | N58: 2783
A59: 5600 | B59: 2425 | C59: 2934.25 | D59: =VLOOKUP(A59,'Correcties op staffel'!$A$5:$C$10,2) -> 0 | E59: =VLOOKUP(A59,'Correcties op staffel'!$A$5:$C$10,3) -> -125 | F59: 2300 | H59: 5600 | I59: 2300 | J59: 2783 | L59: 5600 | M59: 2300 | N59: 2783
A60: 5700 | B60: 2525 | C60: 3055.25 | D60: =VLOOKUP(A60,'Correcties op staffel'!$A$5:$C$10,2) -> 0 | E60: =VLOOKUP(A60,'Correcties op staffel'!$A$5:$C$10,3) -> -125 | F60: 2400 | H60: 5700 | I60: 2400 | J60: 2904 | L60: 5700 | M60: 2400 | N60: 2904
A61: 5800 | B61: 2525 | C61: 3055.25 | D61: =VLOOKUP(A61,'Correcties op staffel'!$A$5:$C$10,2) -> 0 | E61: =VLOOKUP(A61,'Correcties op staffel'!$A$5:$C$10,3) -> -125 | F61: 2400 | H61: 5800 | I61: 2400 | J61: 2904 | L61: 5800 | M61: 2400 | N61: 2904
A62: 5900 | B62: 2525 | C62: 3055.25 | D62: =VLOOKUP(A62,'Correcties op staffel'!$A$5:$C$10,2) -> 0 | E62: =VLOOKUP(A62,'Correcties op staffel'!$A$5:$C$10,3) -> -125 | F62: 2400 | H62: 5900 | I62: 2400 | J62: 2904 | L62: 5900 | M62: 2400 | N62: 2904
A63: 6000 | B63: 2525 | C63: 3055.25 | D63: =VLOOKUP(A63,'Correcties op staffel'!$A$5:$C$10,2) -> 0 | E63: =VLOOKUP(A63,'Correcties op staffel'!$A$5:$C$10,3) -> -125 | F63: 2400 | H63: 6000 | I63: 2400 | J63: 2904 | L63: 6000 | M63: 2400 | N63: 2904
A64: 6100 | B64: 2525 | C64: 3055.25 | D64: =VLOOKUP(A64,'Correcties op staffel'!$A$5:$C$10,2) -> 0 | E64: =VLOOKUP(A64,'Correcties op staffel'!$A$5:$C$10,3) -> -125 | F64: 2400 | H64: 6100 | I64: 2400 | J64: 2904 | L64: 6100 | M64: 2400 | N64: 2904
A65: 6200 | B65: 2625 | C65: 3176.25 | D65: =VLOOKUP(A65,'Correcties op staffel'!$A$5:$C$10,2) -> 0 | E65: =VLOOKUP(A65,'Correcties op staffel'!$A$5:$C$10,3) -> -125 | F65: 2500 | H65: 6200 | I65: 2500 | J65: 3025 | L65: 6200 | M65: 2500 | N65: 3025
A66: 6300 | B66: 2625 | C66: 3176.25 | D66: =VLOOKUP(A66,'Correcties op staffel'!$A$5:$C$10,2) -> 0 | E66: =VLOOKUP(A66,'Correcties op staffel'!$A$5:$C$10,3) -> -125 | F66: 2500 | H66: 6300 | I66: 2500 | J66: 3025 | L66: 6300 | M66: 2500 | N66: 3025
A67: 6400 | B67: 2625 | C67: 3176.25 | D67: =VLOOKUP(A67,'Correcties op staffel'!$A$5:$C$10,2) -> 0 | E67: =VLOOKUP(A67,'Correcties op staffel'!$A$5:$C$10,3) -> -125 | F67: 2500 | H67: 6400 | I67: 2500 | J67: 3025 | L67: 6400 | M67: 2500 | N67: 3025
A68: 6500 | B68: 2625 | C68: 3176.25 | D68: =VLOOKUP(A68,'Correcties op staffel'!$A$5:$C$10,2) -> 0 | E68: =VLOOKUP(A68,'Correcties op staffel'!$A$5:$C$10,3) -> -125 | F68: =B68*(1+D68)+E68 -> 2500 | H68: 6500 | I68: =ROUND(F68,0) -> 2500 | J68: 3025 | L68: 6500 | M68: 2500 | N68: 3025
A69: 6600 | B69: 2625 | C69: 3176.25 | D69: =VLOOKUP(A69,'Correcties op staffel'!$A$5:$C$10,2) -> 0 | E69: =VLOOKUP(A69,'Correcties op staffel'!$A$5:$C$10,3) -> -125 | F69: 2500 | H69: 6600 | I69: 2500 | J69: =I69*1.21 -> 3025 | L69: 6600 | M69: =IF(ROUND(I69/5,0)*5<I69,ROUND(I69/5,0)*5+5,ROUND(I69/5,0)*5) -> 2500 | N69: =M69*1.21 -> 3025
A70: 6700 | B70: 2625 | C70: 3176.25 | D70: =VLOOKUP(A70,'Correcties op staffel'!$A$5:$C$10,2) -> 0 | E70: =VLOOKUP(A70,'Correcties op staffel'!$A$5:$C$10,3) -> -125 | F70: 2500 | H70: 6700 | I70: 2500 | J70: 3025 | L70: 6700 | M70: 2500 | N70: 3025
A71: 6800 | B71: 2725 | C71: 3297.25 | D71: =VLOOKUP(A71,'Correcties op staffel'!$A$5:$C$10,2) -> 0 | E71: =VLOOKUP(A71,'Correcties op staffel'!$A$5:$C$10,3) -> -125 | F71: 2600 | H71: 6800 | I71: 2600 | J71: 3146 | L71: 6800 | M71: 2600 | N71: 3146
A72: 6900 | B72: 2725 | C72: 3297.25 | D72: =VLOOKUP(A72,'Correcties op staffel'!$A$5:$C$10,2) -> 0 | E72: =VLOOKUP(A72,'Correcties op staffel'!$A$5:$C$10,3) -> -125 | F72: 2600 | H72: 6900 | I72: 2600 | J72: 3146 | L72: 6900 | M72: 2600 | N72: 3146
A73: 7000 | B73: 2725 | C73: 3297.25 | D73: =VLOOKUP(A73,'Correcties op staffel'!$A$5:$C$10,2) -> 0 | E73: =VLOOKUP(A73,'Correcties op staffel'!$A$5:$C$10,3) -> -125 | F73: 2600 | H73: 7000 | I73: 2600 | J73: 3146 | L73: 7000 | M73: 2600 | N73: 3146
A74: =A73+100 -> 7100 | B74: 2725 | C74: 3297.25 | D74: =VLOOKUP(A74,'Correcties op staffel'!$A$5:$C$10,2) -> 0 | E74: =VLOOKUP(A74,'Correcties op staffel'!$A$5:$C$10,3) -> -125 | F74: 2600 | H74: =H73+100 -> 7100 | I74: 2600 | J74: 3146 | L74: 7100 | M74: 2600 | N74: 3146
A75: 7200 | B75: 2725 | C75: 3297.25 | D75: =VLOOKUP(A75,'Correcties op staffel'!$A$5:$C$10,2) -> 0 | E75: =VLOOKUP(A75,'Correcties op staffel'!$A$5:$C$10,3) -> -125 | F75: 2600 | H75: 7200 | I75: 2600 | J75: 3146 | L75: 7200 | M75: 2600 | N75: 3146
A76: 7300 | B76: 2825 | C76: 3418.25 | D76: =VLOOKUP(A76,'Correcties op staffel'!$A$5:$C$10,2) -> 0 | E76: =VLOOKUP(A76,'Correcties op staffel'!$A$5:$C$10,3) -> -125 | F76: 2700 | H76: 7300 | I76: 2700 | J76: 3267 | L76: 7300 | M76: 2700 | N76: 3267
A77: 7400 | B77: 2825 | C77: 3418.25 | D77: =VLOOKUP(A77,'Correcties op staffel'!$A$5:$C$10,2) -> 0 | E77: =VLOOKUP(A77,'Correcties op staffel'!$A$5:$C$10,3) -> -125 | F77: 2700 | H77: 7400 | I77: 2700 | J77: 3267 | L77: 7400 | M77: 2700 | N77: 3267
A78: 7500 | B78: 2825 | C78: 3418.25 | D78: =VLOOKUP(A78,'Correcties op staffel'!$A$5:$C$10,2) -> 0 | E78: =VLOOKUP(A78,'Correcties op staffel'!$A$5:$C$10,3) -> -125 | F78: 2700 | H78: 7500 | I78: 2700 | J78: 3267 | L78: 7500 | M78: 2700 | N78: 3267
A79: 7600 | B79: 2825 | C79: 3418.25 | D79: =VLOOKUP(A79,'Correcties op staffel'!$A$5:$C$10,2) -> 0 | E79: =VLOOKUP(A79,'Correcties op staffel'!$A$5:$C$10,3) -> -125 | F79: 2700 | H79: 7600 | I79: 2700 | J79: 3267 | L79: 7600 | M79: 2700 | N79: 3267
A80: 7700 | B80: 2825 | C80: 3418.25 | D80: =VLOOKUP(A80,'Correcties op staffel'!$A$5:$C$10,2) -> 0 | E80: =VLOOKUP(A80,'Correcties op staffel'!$A$5:$C$10,3) -> -125 | F80: 2700 | H80: 7700 | I80: 2700 | J80: 3267 | L80: 7700 | M80: 2700 | N80: 3267
A81: 7800 | B81: 2825 | C81: 3418.25 | D81: =VLOOKUP(A81,'Correcties op staffel'!$A$5:$C$10,2) -> 0 | E81: =VLOOKUP(A81,'Correcties op staffel'!$A$5:$C$10,3) -> -125 | F81: 2700 | H81: 7800 | I81: 2700 | J81: 3267 | L81: 7800 | M81: 2700 | N81: 3267
A82: 7900 | B82: 2925 | C82: 3539.25 | D82: =VLOOKUP(A82,'Correcties op staffel'!$A$5:$C$10,2) -> 0 | E82: =VLOOKUP(A82,'Correcties op staffel'!$A$5:$C$10,3) -> -125 | F82: 2800 | H82: 7900 | I82: 2800 | J82: 3388 | L82: 7900 | M82: 2800 | N82: 3388
A83: 8000 | B83: 2925 | C83: 3539.25 | D83: =VLOOKUP(A83,'Correcties op staffel'!$A$5:$C$10,2) -> 0 | E83: =VLOOKUP(A83,'Correcties op staffel'!$A$5:$C$10,3) -> -125 | F83: 2800 | H83: 8000 | I83: 2800 | J83: 3388 | L83: 8000 | M83: 2800 | N83: 3388
A84: 8100 | B84: 2925 | C84: 3539.25 | D84: =VLOOKUP(A84,'Correcties op staffel'!$A$5:$C$10,2) -> 0 | E84: =VLOOKUP(A84,'Correcties op staffel'!$A$5:$C$10,3) -> -125 | F84: 2800 | H84: 8100 | I84: 2800 | J84: 3388 | L84: 8100 | M84: 2800 | N84: 3388
A85: 8200 | B85: 2925 | C85: 3539.25 | D85: =VLOOKUP(A85,'Correcties op staffel'!$A$5:$C$10,2) -> 0 | E85: =VLOOKUP(A85,'Correcties op staffel'!$A$5:$C$10,3) -> -125 | F85: 2800 | H85: 8200 | I85: 2800 | J85: 3388 | L85: 8200 | M85: 2800 | N85: 3388
A86: 8300 | B86: 2925 | C86: 3539.25 | D86: =VLOOKUP(A86,'Correcties op staffel'!$A$5:$C$10,2) -> 0 | E86: =VLOOKUP(A86,'Correcties op staffel'!$A$5:$C$10,3) -> -125 | F86: 2800 | H86: 8300 | I86: 2800 | J86: 3388 | L86: 8300 | M86: 2800 | N86: 3388
A87: 8400 | B87: 2925 | C87: 3539.25 | D87: =VLOOKUP(A87,'Correcties op staffel'!$A$5:$C$10,2) -> 0 | E87: =VLOOKUP(A87,'Correcties op staffel'!$A$5:$C$10,3) -> -125 | F87: 2800 | H87: 8400 | I87: 2800 | J87: 3388 | L87: 8400 | M87: 2800 | N87: 3388
A88: 8500 | B88: 2925 | C88: 3539.25 | D88: =VLOOKUP(A88,'Correcties op staffel'!$A$5:$C$10,2) -> 0 | E88: =VLOOKUP(A88,'Correcties op staffel'!$A$5:$C$10,3) -> -125 | F88: 2800 | H88: 8500 | I88: 2800 | J88: 3388 | L88: 8500 | M88: 2800 | N88: 3388
A89: 8600 | B89: 3025 | C89: 3660.25 | D89: =VLOOKUP(A89,'Correcties op staffel'!$A$5:$C$10,2) -> 0 | E89: =VLOOKUP(A89,'Correcties op staffel'!$A$5:$C$10,3) -> -125 | F89: 2900 | H89: 8600 | I89: 2900 | J89: 3509 | L89: 8600 | M89: 2900 | N89: 3509
A90: 8700 | B90: 3025 | C90: 3660.25 | D90: =VLOOKUP(A90,'Correcties op staffel'!$A$5:$C$10,2) -> 0 | E90: =VLOOKUP(A90,'Correcties op staffel'!$A$5:$C$10,3) -> -125 | F90: 2900 | H90: 8700 | I90: 2900 | J90: 3509 | L90: 8700 | M90: 2900 | N90: 3509
A91: 8800 | B91: 3025 | C91: 3660.25 | D91: =VLOOKUP(A91,'Correcties op staffel'!$A$5:$C$10,2) -> 0 | E91: =VLOOKUP(A91,'Correcties op staffel'!$A$5:$C$10,3) -> -125 | F91: 2900 | H91: 8800 | I91: 2900 | J91: 3509 | L91: 8800 | M91: 2900 | N91: 3509
A92: 8900 | B92: 3025 | C92: 3660.25 | D92: =VLOOKUP(A92,'Correcties op staffel'!$A$5:$C$10,2) -> 0 | E92: =VLOOKUP(A92,'Correcties op staffel'!$A$5:$C$10,3) -> -125 | F92: 2900 | H92: 8900 | I92: 2900 | J92: 3509 | L92: 8900 | M92: 2900 | N92: 3509
A93: 9000 | B93: 3025 | C93: 3660.25 | D93: =VLOOKUP(A93,'Correcties op staffel'!$A$5:$C$10,2) -> 0 | E93: =VLOOKUP(A93,'Correcties op staffel'!$A$5:$C$10,3) -> -125 | F93: 2900 | H93: 9000 | I93: 2900 | J93: 3509 | L93: 9000 | M93: 2900 | N93: 3509
A94: 9100 | B94: 3025 | C94: 3660.25 | D94: =VLOOKUP(A94,'Correcties op staffel'!$A$5:$C$10,2) -> 0 | E94: =VLOOKUP(A94,'Correcties op staffel'!$A$5:$C$10,3) -> -125 | F94: 2900 | H94: 9100 | I94: 2900 | J94: 3509 | L94: 9100 | M94: 2900 | N94: 3509
A95: 9200 | B95: 3125 | C95: 3781.25 | D95: =VLOOKUP(A95,'Correcties op staffel'!$A$5:$C$10,2) -> 0 | E95: =VLOOKUP(A95,'Correcties op staffel'!$A$5:$C$10,3) -> -125 | F95: 3000 | H95: 9200 | I95: 3000 | J95: 3630 | L95: 9200 | M95: 3000 | N95: 3630
A96: 9300 | B96: 3125 | C96: 3781.25 | D96: =VLOOKUP(A96,'Correcties op staffel'!$A$5:$C$10,2) -> 0 | E96: =VLOOKUP(A96,'Correcties op staffel'!$A$5:$C$10,3) -> -125 | F96: 3000 | H96: 9300 | I96: 3000 | J96: 3630 | L96: 9300 | M96: 3000 | N96: 3630
A97: 9400 | B97: 3125 | C97: 3781.25 | D97: =VLOOKUP(A97,'Correcties op staffel'!$A$5:$C$10,2) -> 0 | E97: =VLOOKUP(A97,'Correcties op staffel'!$A$5:$C$10,3) -> -125 | F97: 3000 | H97: 9400 | I97: 3000 | J97: 3630 | L97: 9400 | M97: 3000 | N97: 3630
A98: 9500 | B98: 3125 | C98: 3781.25 | D98: =VLOOKUP(A98,'Correcties op staffel'!$A$5:$C$10,2) -> 0 | E98: =VLOOKUP(A98,'Correcties op staffel'!$A$5:$C$10,3) -> -125 | F98: 3000 | H98: 9500 | I98: 3000 | J98: 3630 | L98: 9500 | M98: 3000 | N98: 3630
A99: 9600 | B99: 3125 | C99: 3781.25 | D99: =VLOOKUP(A99,'Correcties op staffel'!$A$5:$C$10,2) -> 0 | E99: =VLOOKUP(A99,'Correcties op staffel'!$A$5:$C$10,3) -> -125 | F99: 3000 | H99: 9600 | I99: 3000 | J99: 3630 | L99: 9600 | M99: 3000 | N99: 3630
A100: 9700 | B100: 3125 | C100: 3781.25 | D100: =VLOOKUP(A100,'Correcties op staffel'!$A$5:$C$10,2) -> 0 | E100: =VLOOKUP(A100,'Correcties op staffel'!$A$5:$C$10,3) -> -125 | F100: 3000 | H100: 9700 | I100: 3000 | J100: 3630 | L100: 9700 | M100: 3000 | N100: 3630
A101: 9800 | B101: 3125 | C101: 3781.25 | D101: =VLOOKUP(A101,'Correcties op staffel'!$A$5:$C$10,2) -> 0 | E101: =VLOOKUP(A101,'Correcties op staffel'!$A$5:$C$10,3) -> -125 | F101: 3000 | H101: 9800 | I101: 3000 | J101: 3630 | L101: 9800 | M101: 3000 | N101: 3630
A102: 9900 | B102: 3225 | C102: 3902.25 | D102: =VLOOKUP(A102,'Correcties op staffel'!$A$5:$C$10,2) -> 0 | E102: =VLOOKUP(A102,'Correcties op staffel'!$A$5:$C$10,3) -> -125 | F102: 3100 | H102: 9900 | I102: 3100 | J102: 3751 | L102: 9900 | M102: 3100 | N102: 3751
A103: 10000 | B103: 3225 | C103: 3902.25 | D103: =VLOOKUP(A103,'Correcties op staffel'!$A$5:$C$10,2) -> 0.1 | E103: =VLOOKUP(A103,'Correcties op staffel'!$A$5:$C$10,3) -> -125 | F103: 3422.5 | H103: 10000 | I103: 3423 | J103: 4141.83 | L103: 10000 | M103: 3425 | N103: 4144.25
A104: 10100 | B104: 3225 | C104: 3902.25 | D104: =VLOOKUP(A104,'Correcties op staffel'!$A$5:$C$10,2) -> 0.1 | E104: =VLOOKUP(A104,'Correcties op staffel'!$A$5:$C$10,3) -> -125 | F104: 3422.5 | H104: 10100 | I104: 3423 | J104: 4141.83 | L104: 10100 | M104: 3425 | N104: 4144.25
A105: 10200 | B105: 3225 | C105: 3902.25 | D105: =VLOOKUP(A105,'Correcties op staffel'!$A$5:$C$10,2) -> 0.1 | E105: =VLOOKUP(A105,'Correcties op staffel'!$A$5:$C$10,3) -> -125 | F105: 3422.5 | H105: 10200 | I105: 3423 | J105: 4141.83 | L105: 10200 | M105: 3425 | N105: 4144.25
A106: 10300 | B106: 3225 | C106: 3902.25 | D106: =VLOOKUP(A106,'Correcties op staffel'!$A$5:$C$10,2) -> 0.1 | E106: =VLOOKUP(A106,'Correcties op staffel'!$A$5:$C$10,3) -> -125 | F106: 3422.5 | H106: 10300 | I106: 3423 | J106: 4141.83 | L106: 10300 | M106: 3425 | N106: 4144.25
A107: 10400 | B107: 3225 | C107: 3902.25 | D107: =VLOOKUP(A107,'Correcties op staffel'!$A$5:$C$10,2) -> 0.1 | E107: =VLOOKUP(A107,'Correcties op staffel'!$A$5:$C$10,3) -> -125 | F107: 3422.5 | H107: 10400 | I107: 3423 | J107: 4141.83 | L107: 10400 | M107: 3425 | N107: 4144.25
A108: 10500 | B108: 3225 | C108: 3902.25 | D108: =VLOOKUP(A108,'Correcties op staffel'!$A$5:$C$10,2) -> 0.1 | E108: =VLOOKUP(A108,'Correcties op staffel'!$A$5:$C$10,3) -> -125 | F108: 3422.5 | H108: 10500 | I108: 3423 | J108: 4141.83 | L108: 10500 | M108: 3425 | N108: 4144.25
A109: 10600 | B109: 3325 | C109: 4023.25 | D109: =VLOOKUP(A109,'Correcties op staffel'!$A$5:$C$10,2) -> 0.1 | E109: =VLOOKUP(A109,'Correcties op staffel'!$A$5:$C$10,3) -> -125 | F109: 3532.5 | H109: 10600 | I109: 3533 | J109: 4274.93 | L109: 10600 | M109: 3535 | N109: 4277.35
A110: 10700 | B110: 3325 | C110: 4023.25 | D110: =VLOOKUP(A110,'Correcties op staffel'!$A$5:$C$10,2) -> 0.1 | E110: =VLOOKUP(A110,'Correcties op staffel'!$A$5:$C$10,3) -> -125 | F110: 3532.5 | H110: 10700 | I110: 3533 | J110: 4274.93 | L110: 10700 | M110: 3535 | N110: 4277.35
A111: 10800 | B111: 3325 | C111: 4023.25 | D111: =VLOOKUP(A111,'Correcties op staffel'!$A$5:$C$10,2) -> 0.1 | E111: =VLOOKUP(A111,'Correcties op staffel'!$A$5:$C$10,3) -> -125 | F111: 3532.5 | H111: 10800 | I111: 3533 | J111: 4274.93 | L111: 10800 | M111: 3535 | N111: 4277.35
A112: 10900 | B112: 3325 | C112: 4023.25 | D112: =VLOOKUP(A112,'Correcties op staffel'!$A$5:$C$10,2) -> 0.1 | E112: =VLOOKUP(A112,'Correcties op staffel'!$A$5:$C$10,3) -> -125 | F112: 3532.5 | H112: 10900 | I112: 3533 | J112: 4274.93 | L112: 10900 | M112: 3535 | N112: 4277.35
A113: 11000 | B113: 3325 | C113: 4023.25 | D113: =VLOOKUP(A113,'Correcties op staffel'!$A$5:$C$10,2) -> 0.1 | E113: =VLOOKUP(A113,'Correcties op staffel'!$A$5:$C$10,3) -> -125 | F113: 3532.5 | H113: 11000 | I113: 3533 | J113: 4274.93 | L113: 11000 | M113: 3535 | N113: 4277.35
A114: 11100 | B114: 3325 | C114: 4023.25 | D114: =VLOOKUP(A114,'Correcties op staffel'!$A$5:$C$10,2) -> 0.1 | E114: =VLOOKUP(A114,'Correcties op staffel'!$A$5:$C$10,3) -> -125 | F114: 3532.5 | H114: 11100 | I114: 3533 | J114: 4274.93 | L114: 11100 | M114: 3535 | N114: 4277.35
A115: 11200 | B115: 3325 | C115: 4023.25 | D115: =VLOOKUP(A115,'Correcties op staffel'!$A$5:$C$10,2) -> 0.1 | E115: =VLOOKUP(A115,'Correcties op staffel'!$A$5:$C$10,3) -> -125 | F115: 3532.5 | H115: 11200 | I115: 3533 | J115: 4274.93 | L115: 11200 | M115: 3535 | N115: 4277.35
A116: 11300 | B116: 3425 | C116: 4144.25 | D116: =VLOOKUP(A116,'Correcties op staffel'!$A$5:$C$10,2) -> 0.1 | E116: =VLOOKUP(A116,'Correcties op staffel'!$A$5:$C$10,3) -> -125 | F116: 3642.5 | H116: 11300 | I116: 3643 | J116: 4408.03 | L116: 11300 | M116: 3645 | N116: 4410.45
A117: 11400 | B117: 3425 | C117: 4144.25 | D117: =VLOOKUP(A117,'Correcties op staffel'!$A$5:$C$10,2) -> 0.1 | E117: =VLOOKUP(A117,'Correcties op staffel'!$A$5:$C$10,3) -> -125 | F117: 3642.5 | H117: 11400 | I117: 3643 | J117: 4408.03 | L117: 11400 | M117: 3645 | N117: 4410.45
A118: 11500 | B118: 3425 | C118: 4144.25 | D118: =VLOOKUP(A118,'Correcties op staffel'!$A$5:$C$10,2) -> 0.1 | E118: =VLOOKUP(A118,'Correcties op staffel'!$A$5:$C$10,3) -> -125 | F118: 3642.5 | H118: 11500 | I118: 3643 | J118: 4408.03 | L118: 11500 | M118: 3645 | N118: 4410.45
A119: 11600 | B119: 3425 | C119: 4144.25 | D119: =VLOOKUP(A119,'Correcties op staffel'!$A$5:$C$10,2) -> 0.1 | E119: =VLOOKUP(A119,'Correcties op staffel'!$A$5:$C$10,3) -> -125 | F119: 3642.5 | H119: 11600 | I119: 3643 | J119: 4408.03 | L119: 11600 | M119: 3645 | N119: 4410.45
A120: 11700 | B120: 3425 | C120: 4144.25 | D120: =VLOOKUP(A120,'Correcties op staffel'!$A$5:$C$10,2) -> 0.1 | E120: =VLOOKUP(A120,'Correcties op staffel'!$A$5:$C$10,3) -> -125 | F120: 3642.5 | H120: 11700 | I120: 3643 | J120: 4408.03 | L120: 11700 | M120: 3645 | N120: 4410.45
A121: 11800 | B121: 3425 | C121: 4144.25 | D121: =VLOOKUP(A121,'Correcties op staffel'!$A$5:$C$10,2) -> 0.1 | E121: =VLOOKUP(A121,'Correcties op staffel'!$A$5:$C$10,3) -> -125 | F121: 3642.5 | H121: 11800 | I121: 3643 | J121: 4408.03 | L121: 11800 | M121: 3645 | N121: 4410.45
A122: 11900 | B122: 3425 | C122: 4144.25 | D122: =VLOOKUP(A122,'Correcties op staffel'!$A$5:$C$10,2) -> 0.1 | E122: =VLOOKUP(A122,'Correcties op staffel'!$A$5:$C$10,3) -> -125 | F122: 3642.5 | H122: 11900 | I122: 3643 | J122: 4408.03 | L122: 11900 | M122: 3645 | N122: 4410.45
A123: 12000 | B123: 3425 | C123: 4144.25 | D123: =VLOOKUP(A123,'Correcties op staffel'!$A$5:$C$10,2) -> 0.1 | E123: =VLOOKUP(A123,'Correcties op staffel'!$A$5:$C$10,3) -> -125 | F123: 3642.5 | H123: 12000 | I123: 3643 | J123: 4408.03 | L123: 12000 | M123: 3645 | N123: 4410.45
A124: 12100 | B124: 3525 | C124: 4265.25 | D124: =VLOOKUP(A124,'Correcties op staffel'!$A$5:$C$10,2) -> 0.1 | E124: =VLOOKUP(A124,'Correcties op staffel'!$A$5:$C$10,3) -> -125 | F124: 3752.5 | H124: 12100 | I124: 3753 | J124: 4541.13 | L124: 12100 | M124: 3755 | N124: 4543.55
A125: 12200 | B125: 3525 | C125: 4265.25 | D125: =VLOOKUP(A125,'Correcties op staffel'!$A$5:$C$10,2) -> 0.1 | E125: =VLOOKUP(A125,'Correcties op staffel'!$A$5:$C$10,3) -> -125 | F125: 3752.5 | H125: 12200 | I125: 3753 | J125: 4541.13 | L125: 12200 | M125: 3755 | N125: 4543.55
A126: 12300 | B126: 3525 | C126: 4265.25 | D126: =VLOOKUP(A126,'Correcties op staffel'!$A$5:$C$10,2) -> 0.1 | E126: =VLOOKUP(A126,'Correcties op staffel'!$A$5:$C$10,3) -> -125 | F126: 3752.5 | H126: 12300 | I126: 3753 | J126: 4541.13 | L126: 12300 | M126: 3755 | N126: 4543.55
A127: 12400 | B127: 3525 | C127: 4265.25 | D127: =VLOOKUP(A127,'Correcties op staffel'!$A$5:$C$10,2) -> 0.1 | E127: =VLOOKUP(A127,'Correcties op staffel'!$A$5:$C$10,3) -> -125 | F127: 3752.5 | H127: 12400 | I127: 3753 | J127: 4541.13 | L127: 12400 | M127: 3755 | N127: 4543.55
A128: 12500 | B128: 3525 | C128: 4265.25 | D128: =VLOOKUP(A128,'Correcties op staffel'!$A$5:$C$10,2) -> 0.1 | E128: =VLOOKUP(A128,'Correcties op staffel'!$A$5:$C$10,3) -> -125 | F128: 3752.5 | H128: 12500 | I128: 3753 | J128: 4541.13 | L128: 12500 | M128: 3755 | N128: 4543.55
A129: 12600 | B129: 3525 | C129: 4265.25 | D129: =VLOOKUP(A129,'Correcties op staffel'!$A$5:$C$10,2) -> 0.1 | E129: =VLOOKUP(A129,'Correcties op staffel'!$A$5:$C$10,3) -> -125 | F129: 3752.5 | H129: 12600 | I129: 3753 | J129: 4541.13 | L129: 12600 | M129: 3755 | N129: 4543.55
A130: 12700 | B130: 3525 | C130: 4265.25 | D130: =VLOOKUP(A130,'Correcties op staffel'!$A$5:$C$10,2) -> 0.1 | E130: =VLOOKUP(A130,'Correcties op staffel'!$A$5:$C$10,3) -> -125 | F130: 3752.5 | H130: 12700 | I130: 3753 | J130: 4541.13 | L130: 12700 | M130: 3755 | N130: 4543.55
A131: 12800 | B131: 3525 | C131: 4265.25 | D131: =VLOOKUP(A131,'Correcties op staffel'!$A$5:$C$10,2) -> 0.1 | E131: =VLOOKUP(A131,'Correcties op staffel'!$A$5:$C$10,3) -> -125 | F131: 3752.5 | H131: 12800 | I131: 3753 | J131: 4541.13 | L131: 12800 | M131: 3755 | N131: 4543.55
A132: 12900 | B132: 3625 | C132: 4386.25 | D132: =VLOOKUP(A132,'Correcties op staffel'!$A$5:$C$10,2) -> 0.1 | E132: =VLOOKUP(A132,'Correcties op staffel'!$A$5:$C$10,3) -> -125 | F132: =B132*(1+D132)+E132 -> 3862.5 | H132: 12900 | I132: =ROUND(F132,0) -> 3863 | J132: 4674.23 | L132: 12900 | M132: 3865 | N132: 4676.65
A133: 13000 | B133: 3625 | C133: 4386.25 | D133: =VLOOKUP(A133,'Correcties op staffel'!$A$5:$C$10,2) -> 0.1 | E133: =VLOOKUP(A133,'Correcties op staffel'!$A$5:$C$10,3) -> -125 | F133: 3862.5 | H133: 13000 | I133: 3863 | J133: =I133*1.21 -> 4674.23 | L133: 13000 | M133: =IF(ROUND(I133/5,0)*5<I133,ROUND(I133/5,0)*5+5,ROUND(I133/5,0)*5) -> 3865 | N133: =M133*1.21 -> 4676.65
A134: 13100 | B134: 3625 | C134: 4386.25 | D134: =VLOOKUP(A134,'Correcties op staffel'!$A$5:$C$10,2) -> 0.1 | E134: =VLOOKUP(A134,'Correcties op staffel'!$A$5:$C$10,3) -> -125 | F134: 3862.5 | H134: 13100 | I134: 3863 | J134: 4674.23 | L134: 13100 | M134: 3865 | N134: 4676.65
A135: 13200 | B135: 3625 | C135: 4386.25 | D135: =VLOOKUP(A135,'Correcties op staffel'!$A$5:$C$10,2) -> 0.1 | E135: =VLOOKUP(A135,'Correcties op staffel'!$A$5:$C$10,3) -> -125 | F135: 3862.5 | H135: 13200 | I135: 3863 | J135: 4674.23 | L135: 13200 | M135: 3865 | N135: 4676.65
A136: 13300 | B136: 3625 | C136: 4386.25 | D136: =VLOOKUP(A136,'Correcties op staffel'!$A$5:$C$10,2) -> 0.1 | E136: =VLOOKUP(A136,'Correcties op staffel'!$A$5:$C$10,3) -> -125 | F136: 3862.5 | H136: 13300 | I136: 3863 | J136: 4674.23 | L136: 13300 | M136: 3865 | N136: 4676.65
A137: 13400 | B137: 3625 | C137: 4386.25 | D137: =VLOOKUP(A137,'Correcties op staffel'!$A$5:$C$10,2) -> 0.1 | E137: =VLOOKUP(A137,'Correcties op staffel'!$A$5:$C$10,3) -> -125 | F137: 3862.5 | H137: 13400 | I137: 3863 | J137: 4674.23 | L137: 13400 | M137: 3865 | N137: 4676.65
A138: =A137+100 -> 13500 | B138: 3625 | C138: 4386.25 | D138: =VLOOKUP(A138,'Correcties op staffel'!$A$5:$C$10,2) -> 0.1 | E138: =VLOOKUP(A138,'Correcties op staffel'!$A$5:$C$10,3) -> -125 | F138: 3862.5 | H138: =H137+100 -> 13500 | I138: 3863 | J138: 4674.23 | L138: 13500 | M138: 3865 | N138: 4676.65
A139: 13600 | B139: 3625 | C139: 4386.25 | D139: =VLOOKUP(A139,'Correcties op staffel'!$A$5:$C$10,2) -> 0.1 | E139: =VLOOKUP(A139,'Correcties op staffel'!$A$5:$C$10,3) -> -125 | F139: 3862.5 | H139: 13600 | I139: 3863 | J139: 4674.23 | L139: 13600 | M139: 3865 | N139: 4676.65
A140: 13700 | B140: 3725 | C140: 4507.25 | D140: =VLOOKUP(A140,'Correcties op staffel'!$A$5:$C$10,2) -> 0.1 | E140: =VLOOKUP(A140,'Correcties op staffel'!$A$5:$C$10,3) -> -125 | F140: 3972.5 | H140: 13700 | I140: 3973 | J140: 4807.33 | L140: 13700 | M140: 3975 | N140: 4809.75
A141: 13800 | B141: 3725 | C141: 4507.25 | D141: =VLOOKUP(A141,'Correcties op staffel'!$A$5:$C$10,2) -> 0.1 | E141: =VLOOKUP(A141,'Correcties op staffel'!$A$5:$C$10,3) -> -125 | F141: 3972.5 | H141: 13800 | I141: 3973 | J141: 4807.33 | L141: 13800 | M141: 3975 | N141: 4809.75
A142: 13900 | B142: 3725 | C142: 4507.25 | D142: =VLOOKUP(A142,'Correcties op staffel'!$A$5:$C$10,2) -> 0.1 | E142: =VLOOKUP(A142,'Correcties op staffel'!$A$5:$C$10,3) -> -125 | F142: 3972.5 | H142: 13900 | I142: 3973 | J142: 4807.33 | L142: 13900 | M142: 3975 | N142: 4809.75
A143: 14000 | B143: 3725 | C143: 4507.25 | D143: =VLOOKUP(A143,'Correcties op staffel'!$A$5:$C$10,2) -> 0.1 | E143: =VLOOKUP(A143,'Correcties op staffel'!$A$5:$C$10,3) -> -125 | F143: 3972.5 | H143: 14000 | I143: 3973 | J143: 4807.33 | L143: 14000 | M143: 3975 | N143: 4809.75
A144: 14100 | B144: 3725 | C144: 4507.25 | D144: =VLOOKUP(A144,'Correcties op staffel'!$A$5:$C$10,2) -> 0.1 | E144: =VLOOKUP(A144,'Correcties op staffel'!$A$5:$C$10,3) -> -125 | F144: 3972.5 | H144: 14100 | I144: 3973 | J144: 4807.33 | L144: 14100 | M144: 3975 | N144: 4809.75
A145: 14200 | B145: 3725 | C145: 4507.25 | D145: =VLOOKUP(A145,'Correcties op staffel'!$A$5:$C$10,2) -> 0.1 | E145: =VLOOKUP(A145,'Correcties op staffel'!$A$5:$C$10,3) -> -125 | F145: 3972.5 | H145: 14200 | I145: 3973 | J145: 4807.33 | L145: 14200 | M145: 3975 | N145: 4809.75
A146: 14300 | B146: 3725 | C146: 4507.25 | D146: =VLOOKUP(A146,'Correcties op staffel'!$A$5:$C$10,2) -> 0.1 | E146: =VLOOKUP(A146,'Correcties op staffel'!$A$5:$C$10,3) -> -125 | F146: 3972.5 | H146: 14300 | I146: 3973 | J146: 4807.33 | L146: 14300 | M146: 3975 | N146: 4809.75
A147: 14400 | B147: 3725 | C147: 4507.25 | D147: =VLOOKUP(A147,'Correcties op staffel'!$A$5:$C$10,2) -> 0.1 | E147: =VLOOKUP(A147,'Correcties op staffel'!$A$5:$C$10,3) -> -125 | F147: 3972.5 | H147: 14400 | I147: 3973 | J147: 4807.33 | L147: 14400 | M147: 3975 | N147: 4809.75
A148: 14500 | B148: 3825 | C148: 4628.25 | D148: =VLOOKUP(A148,'Correcties op staffel'!$A$5:$C$10,2) -> 0.1 | E148: =VLOOKUP(A148,'Correcties op staffel'!$A$5:$C$10,3) -> -125 | F148: 4082.5 | H148: 14500 | I148: 4083 | J148: 4940.43 | L148: 14500 | M148: 4085 | N148: 4942.85
A149: 14600 | B149: 3825 | C149: 4628.25 | D149: =VLOOKUP(A149,'Correcties op staffel'!$A$5:$C$10,2) -> 0.1 | E149: =VLOOKUP(A149,'Correcties op staffel'!$A$5:$C$10,3) -> -125 | F149: 4082.5 | H149: 14600 | I149: 4083 | J149: 4940.43 | L149: 14600 | M149: 4085 | N149: 4942.85
A150: 14700 | B150: 3825 | C150: 4628.25 | D150: =VLOOKUP(A150,'Correcties op staffel'!$A$5:$C$10,2) -> 0.1 | E150: =VLOOKUP(A150,'Correcties op staffel'!$A$5:$C$10,3) -> -125 | F150: 4082.5 | H150: 14700 | I150: 4083 | J150: 4940.43 | L150: 14700 | M150: 4085 | N150: 4942.85
A151: 14800 | B151: 3825 | C151: 4628.25 | D151: =VLOOKUP(A151,'Correcties op staffel'!$A$5:$C$10,2) -> 0.1 | E151: =VLOOKUP(A151,'Correcties op staffel'!$A$5:$C$10,3) -> -125 | F151: 4082.5 | H151: 14800 | I151: 4083 | J151: 4940.43 | L151: 14800 | M151: 4085 | N151: 4942.85
A152: 14900 | B152: 3825 | C152: 4628.25 | D152: =VLOOKUP(A152,'Correcties op staffel'!$A$5:$C$10,2) -> 0.1 | E152: =VLOOKUP(A152,'Correcties op staffel'!$A$5:$C$10,3) -> -125 | F152: 4082.5 | H152: 14900 | I152: 4083 | J152: 4940.43 | L152: 14900 | M152: 4085 | N152: 4942.85
A153: 15000 | B153: 3825 | C153: 4628.25 | D153: =VLOOKUP(A153,'Correcties op staffel'!$A$5:$C$10,2) -> 0.1 | E153: =VLOOKUP(A153,'Correcties op staffel'!$A$5:$C$10,3) -> -125 | F153: 4082.5 | H153: 15000 | I153: 4083 | J153: 4940.43 | L153: 15000 | M153: 4085 | N153: 4942.85
A154: 15100 | B154: 3825 | C154: 4628.25 | D154: =VLOOKUP(A154,'Correcties op staffel'!$A$5:$C$10,2) -> 0.1 | E154: =VLOOKUP(A154,'Correcties op staffel'!$A$5:$C$10,3) -> -125 | F154: 4082.5 | H154: 15100 | I154: 4083 | J154: 4940.43 | L154: 15100 | M154: 4085 | N154: 4942.85
A155: 15200 | B155: 3825 | C155: 4628.25 | D155: =VLOOKUP(A155,'Correcties op staffel'!$A$5:$C$10,2) -> 0.1 | E155: =VLOOKUP(A155,'Correcties op staffel'!$A$5:$C$10,3) -> -125 | F155: 4082.5 | H155: 15200 | I155: 4083 | J155: 4940.43 | L155: 15200 | M155: 4085 | N155: 4942.85
A156: 15300 | B156: 3925 | C156: 4749.25 | D156: =VLOOKUP(A156,'Correcties op staffel'!$A$5:$C$10,2) -> 0.1 | E156: =VLOOKUP(A156,'Correcties op staffel'!$A$5:$C$10,3) -> -125 | F156: 4192.5 | H156: 15300 | I156: 4193 | J156: 5073.53 | L156: 15300 | M156: 4195 | N156: 5075.95
A157: 15400 | B157: 3925 | C157: 4749.25 | D157: =VLOOKUP(A157,'Correcties op staffel'!$A$5:$C$10,2) -> 0.1 | E157: =VLOOKUP(A157,'Correcties op staffel'!$A$5:$C$10,3) -> -125 | F157: 4192.5 | H157: 15400 | I157: 4193 | J157: 5073.53 | L157: 15400 | M157: 4195 | N157: 5075.95
A158: 15500 | B158: 3925 | C158: 4749.25 | D158: =VLOOKUP(A158,'Correcties op staffel'!$A$5:$C$10,2) -> 0.1 | E158: =VLOOKUP(A158,'Correcties op staffel'!$A$5:$C$10,3) -> -125 | F158: 4192.5 | H158: 15500 | I158: 4193 | J158: 5073.53 | L158: 15500 | M158: 4195 | N158: 5075.95
A159: 15600 | B159: 3925 | C159: 4749.25 | D159: =VLOOKUP(A159,'Correcties op staffel'!$A$5:$C$10,2) -> 0.1 | E159: =VLOOKUP(A159,'Correcties op staffel'!$A$5:$C$10,3) -> -125 | F159: 4192.5 | H159: 15600 | I159: 4193 | J159: 5073.53 | L159: 15600 | M159: 4195 | N159: 5075.95
A160: 15700 | B160: 3925 | C160: 4749.25 | D160: =VLOOKUP(A160,'Correcties op staffel'!$A$5:$C$10,2) -> 0.1 | E160: =VLOOKUP(A160,'Correcties op staffel'!$A$5:$C$10,3) -> -125 | F160: 4192.5 | H160: 15700 | I160: 4193 | J160: 5073.53 | L160: 15700 | M160: 4195 | N160: 5075.95
A161: 15800 | B161: 3925 | C161: 4749.25 | D161: =VLOOKUP(A161,'Correcties op staffel'!$A$5:$C$10,2) -> 0.1 | E161: =VLOOKUP(A161,'Correcties op staffel'!$A$5:$C$10,3) -> -125 | F161: 4192.5 | H161: 15800 | I161: 4193 | J161: 5073.53 | L161: 15800 | M161: 4195 | N161: 5075.95
A162: 15900 | B162: 3925 | C162: 4749.25 | D162: =VLOOKUP(A162,'Correcties op staffel'!$A$5:$C$10,2) -> 0.1 | E162: =VLOOKUP(A162,'Correcties op staffel'!$A$5:$C$10,3) -> -125 | F162: 4192.5 | H162: 15900 | I162: 4193 | J162: 5073.53 | L162: 15900 | M162: 4195 | N162: 5075.95
A163: 16000 | B163: 3925 | C163: 4749.25 | D163: =VLOOKUP(A163,'Correcties op staffel'!$A$5:$C$10,2) -> 0.1 | E163: =VLOOKUP(A163,'Correcties op staffel'!$A$5:$C$10,3) -> -125 | F163: 4192.5 | H163: 16000 | I163: 4193 | J163: 5073.53 | L163: 16000 | M163: 4195 | N163: 5075.95
A164: 16100 | B164: 3925 | C164: 4749.25 | D164: =VLOOKUP(A164,'Correcties op staffel'!$A$5:$C$10,2) -> 0.1 | E164: =VLOOKUP(A164,'Correcties op staffel'!$A$5:$C$10,3) -> -125 | F164: 4192.5 | H164: 16100 | I164: 4193 | J164: 5073.53 | L164: 16100 | M164: 4195 | N164: 5075.95
A165: 16200 | B165: 4025 | C165: 4870.25 | D165: =VLOOKUP(A165,'Correcties op staffel'!$A$5:$C$10,2) -> 0.1 | E165: =VLOOKUP(A165,'Correcties op staffel'!$A$5:$C$10,3) -> -125 | F165: 4302.5 | H165: 16200 | I165: 4303 | J165: 5206.63 | L165: 16200 | M165: 4305 | N165: 5209.05
A166: 16300 | B166: 4025 | C166: 4870.25 | D166: =VLOOKUP(A166,'Correcties op staffel'!$A$5:$C$10,2) -> 0.1 | E166: =VLOOKUP(A166,'Correcties op staffel'!$A$5:$C$10,3) -> -125 | F166: 4302.5 | H166: 16300 | I166: 4303 | J166: 5206.63 | L166: 16300 | M166: 4305 | N166: 5209.05
A167: 16400 | B167: 4025 | C167: 4870.25 | D167: =VLOOKUP(A167,'Correcties op staffel'!$A$5:$C$10,2) -> 0.1 | E167: =VLOOKUP(A167,'Correcties op staffel'!$A$5:$C$10,3) -> -125 | F167: 4302.5 | H167: 16400 | I167: 4303 | J167: 5206.63 | L167: 16400 | M167: 4305 | N167: 5209.05
A168: 16500 | B168: 4025 | C168: 4870.25 | D168: =VLOOKUP(A168,'Correcties op staffel'!$A$5:$C$10,2) -> 0.1 | E168: =VLOOKUP(A168,'Correcties op staffel'!$A$5:$C$10,3) -> -125 | F168: 4302.5 | H168: 16500 | I168: 4303 | J168: 5206.63 | L168: 16500 | M168: 4305 | N168: 5209.05
A169: 16600 | B169: 4025 | C169: 4870.25 | D169: =VLOOKUP(A169,'Correcties op staffel'!$A$5:$C$10,2) -> 0.1 | E169: =VLOOKUP(A169,'Correcties op staffel'!$A$5:$C$10,3) -> -125 | F169: 4302.5 | H169: 16600 | I169: 4303 | J169: 5206.63 | L169: 16600 | M169: 4305 | N169: 5209.05
A170: 16700 | B170: 4025 | C170: 4870.25 | D170: =VLOOKUP(A170,'Correcties op staffel'!$A$5:$C$10,2) -> 0.1 | E170: =VLOOKUP(A170,'Correcties op staffel'!$A$5:$C$10,3) -> -125 | F170: 4302.5 | H170: 16700 | I170: 4303 | J170: 5206.63 | L170: 16700 | M170: 4305 | N170: 5209.05
A171: 16800 | B171: 4025 | C171: 4870.25 | D171: =VLOOKUP(A171,'Correcties op staffel'!$A$5:$C$10,2) -> 0.1 | E171: =VLOOKUP(A171,'Correcties op staffel'!$A$5:$C$10,3) -> -125 | F171: 4302.5 | H171: 16800 | I171: 4303 | J171: 5206.63 | L171: 16800 | M171: 4305 | N171: 5209.05
A172: 16900 | B172: 4025 | C172: 4870.25 | D172: =VLOOKUP(A172,'Correcties op staffel'!$A$5:$C$10,2) -> 0.1 | E172: =VLOOKUP(A172,'Correcties op staffel'!$A$5:$C$10,3) -> -125 | F172: 4302.5 | H172: 16900 | I172: 4303 | J172: 5206.63 | L172: 16900 | M172: 4305 | N172: 5209.05
A173: 17000 | B173: 4025 | C173: 4870.25 | D173: =VLOOKUP(A173,'Correcties op staffel'!$A$5:$C$10,2) -> 0.1 | E173: =VLOOKUP(A173,'Correcties op staffel'!$A$5:$C$10,3) -> -125 | F173: 4302.5 | H173: 17000 | I173: 4303 | J173: 5206.63 | L173: 17000 | M173: 4305 | N173: 5209.05
A174: 17100 | B174: 4125 | C174: 4991.25 | D174: =VLOOKUP(A174,'Correcties op staffel'!$A$5:$C$10,2) -> 0.1 | E174: =VLOOKUP(A174,'Correcties op staffel'!$A$5:$C$10,3) -> -125 | F174: 4412.5 | H174: 17100 | I174: 4413 | J174: 5339.73 | L174: 17100 | M174: 4415 | N174: 5342.15
A175: 17200 | B175: 4125 | C175: 4991.25 | D175: =VLOOKUP(A175,'Correcties op staffel'!$A$5:$C$10,2) -> 0.1 | E175: =VLOOKUP(A175,'Correcties op staffel'!$A$5:$C$10,3) -> -125 | F175: 4412.5 | H175: 17200 | I175: 4413 | J175: 5339.73 | L175: 17200 | M175: 4415 | N175: 5342.15
A176: 17300 | B176: 4125 | C176: 4991.25 | D176: =VLOOKUP(A176,'Correcties op staffel'!$A$5:$C$10,2) -> 0.1 | E176: =VLOOKUP(A176,'Correcties op staffel'!$A$5:$C$10,3) -> -125 | F176: 4412.5 | H176: 17300 | I176: 4413 | J176: 5339.73 | L176: 17300 | M176: 4415 | N176: 5342.15
A177: 17400 | B177: 4125 | C177: 4991.25 | D177: =VLOOKUP(A177,'Correcties op staffel'!$A$5:$C$10,2) -> 0.1 | E177: =VLOOKUP(A177,'Correcties op staffel'!$A$5:$C$10,3) -> -125 | F177: 4412.5 | H177: 17400 | I177: 4413 | J177: 5339.73 | L177: 17400 | M177: 4415 | N177: 5342.15
A178: 17500 | B178: 4125 | C178: 4991.25 | D178: =VLOOKUP(A178,'Correcties op staffel'!$A$5:$C$10,2) -> 0.1 | E178: =VLOOKUP(A178,'Correcties op staffel'!$A$5:$C$10,3) -> -125 | F178: 4412.5 | H178: 17500 | I178: 4413 | J178: 5339.73 | L178: 17500 | M178: 4415 | N178: 5342.15
A179: 17600 | B179: 4125 | C179: 4991.25 | D179: =VLOOKUP(A179,'Correcties op staffel'!$A$5:$C$10,2) -> 0.1 | E179: =VLOOKUP(A179,'Correcties op staffel'!$A$5:$C$10,3) -> -125 | F179: 4412.5 | H179: 17600 | I179: 4413 | J179: 5339.73 | L179: 17600 | M179: 4415 | N179: 5342.15
A180: 17700 | B180: 4125 | C180: 4991.25 | D180: =VLOOKUP(A180,'Correcties op staffel'!$A$5:$C$10,2) -> 0.1 | E180: =VLOOKUP(A180,'Correcties op staffel'!$A$5:$C$10,3) -> -125 | F180: 4412.5 | H180: 17700 | I180: 4413 | J180: 5339.73 | L180: 17700 | M180: 4415 | N180: 5342.15
A181: 17800 | B181: 4125 | C181: 4991.25 | D181: =VLOOKUP(A181,'Correcties op staffel'!$A$5:$C$10,2) -> 0.1 | E181: =VLOOKUP(A181,'Correcties op staffel'!$A$5:$C$10,3) -> -125 | F181: 4412.5 | H181: 17800 | I181: 4413 | J181: 5339.73 | L181: 17800 | M181: 4415 | N181: 5342.15
A182: 17900 | B182: 4125 | C182: 4991.25 | D182: =VLOOKUP(A182,'Correcties op staffel'!$A$5:$C$10,2) -> 0.1 | E182: =VLOOKUP(A182,'Correcties op staffel'!$A$5:$C$10,3) -> -125 | F182: 4412.5 | H182: 17900 | I182: 4413 | J182: 5339.73 | L182: 17900 | M182: 4415 | N182: 5342.15
A183: 18000 | B183: 4225 | C183: 5112.25 | D183: =VLOOKUP(A183,'Correcties op staffel'!$A$5:$C$10,2) -> 0.1 | E183: =VLOOKUP(A183,'Correcties op staffel'!$A$5:$C$10,3) -> -125 | F183: 4522.5 | H183: 18000 | I183: 4523 | J183: 5472.83 | L183: 18000 | M183: 4525 | N183: 5475.25
A184: 18100 | B184: 4225 | C184: 5112.25 | D184: =VLOOKUP(A184,'Correcties op staffel'!$A$5:$C$10,2) -> 0.1 | E184: =VLOOKUP(A184,'Correcties op staffel'!$A$5:$C$10,3) -> -125 | F184: 4522.5 | H184: 18100 | I184: 4523 | J184: 5472.83 | L184: 18100 | M184: 4525 | N184: 5475.25
A185: 18200 | B185: 4225 | C185: 5112.25 | D185: =VLOOKUP(A185,'Correcties op staffel'!$A$5:$C$10,2) -> 0.1 | E185: =VLOOKUP(A185,'Correcties op staffel'!$A$5:$C$10,3) -> -125 | F185: 4522.5 | H185: 18200 | I185: 4523 | J185: 5472.83 | L185: 18200 | M185: 4525 | N185: 5475.25
A186: 18300 | B186: 4225 | C186: 5112.25 | D186: =VLOOKUP(A186,'Correcties op staffel'!$A$5:$C$10,2) -> 0.1 | E186: =VLOOKUP(A186,'Correcties op staffel'!$A$5:$C$10,3) -> -125 | F186: 4522.5 | H186: 18300 | I186: 4523 | J186: 5472.83 | L186: 18300 | M186: 4525 | N186: 5475.25
A187: 18400 | B187: 4225 | C187: 5112.25 | D187: =VLOOKUP(A187,'Correcties op staffel'!$A$5:$C$10,2) -> 0.1 | E187: =VLOOKUP(A187,'Correcties op staffel'!$A$5:$C$10,3) -> -125 | F187: 4522.5 | H187: 18400 | I187: 4523 | J187: 5472.83 | L187: 18400 | M187: 4525 | N187: 5475.25
A188: 18500 | B188: 4225 | C188: 5112.25 | D188: =VLOOKUP(A188,'Correcties op staffel'!$A$5:$C$10,2) -> 0.1 | E188: =VLOOKUP(A188,'Correcties op staffel'!$A$5:$C$10,3) -> -125 | F188: 4522.5 | H188: 18500 | I188: 4523 | J188: 5472.83 | L188: 18500 | M188: 4525 | N188: 5475.25
A189: 18600 | B189: 4225 | C189: 5112.25 | D189: =VLOOKUP(A189,'Correcties op staffel'!$A$5:$C$10,2) -> 0.1 | E189: =VLOOKUP(A189,'Correcties op staffel'!$A$5:$C$10,3) -> -125 | F189: 4522.5 | H189: 18600 | I189: 4523 | J189: 5472.83 | L189: 18600 | M189: 4525 | N189: 5475.25
A190: 18700 | B190: 4225 | C190: 5112.25 | D190: =VLOOKUP(A190,'Correcties op staffel'!$A$5:$C$10,2) -> 0.1 | E190: =VLOOKUP(A190,'Correcties op staffel'!$A$5:$C$10,3) -> -125 | F190: 4522.5 | H190: 18700 | I190: 4523 | J190: 5472.83 | L190: 18700 | M190: 4525 | N190: 5475.25
A191: 18800 | B191: 4225 | C191: 5112.25 | D191: =VLOOKUP(A191,'Correcties op staffel'!$A$5:$C$10,2) -> 0.1 | E191: =VLOOKUP(A191,'Correcties op staffel'!$A$5:$C$10,3) -> -125 | F191: 4522.5 | H191: 18800 | I191: 4523 | J191: 5472.83 | L191: 18800 | M191: 4525 | N191: 5475.25
A192: 18900 | B192: 4225 | C192: 5112.25 | D192: =VLOOKUP(A192,'Correcties op staffel'!$A$5:$C$10,2) -> 0.1 | E192: =VLOOKUP(A192,'Correcties op staffel'!$A$5:$C$10,3) -> -125 | F192: 4522.5 | H192: 18900 | I192: 4523 | J192: 5472.83 | L192: 18900 | M192: 4525 | N192: 5475.25
A193: 19000 | B193: 4325 | C193: 5233.25 | D193: =VLOOKUP(A193,'Correcties op staffel'!$A$5:$C$10,2) -> 0.1 | E193: =VLOOKUP(A193,'Correcties op staffel'!$A$5:$C$10,3) -> -125 | F193: 4632.5 | H193: 19000 | I193: 4633 | J193: 5605.93 | L193: 19000 | M193: 4635 | N193: 5608.35
A194: 19100 | B194: 4325 | C194: 5233.25 | D194: =VLOOKUP(A194,'Correcties op staffel'!$A$5:$C$10,2) -> 0.1 | E194: =VLOOKUP(A194,'Correcties op staffel'!$A$5:$C$10,3) -> -125 | F194: 4632.5 | H194: 19100 | I194: 4633 | J194: 5605.93 | L194: 19100 | M194: 4635 | N194: 5608.35
A195: 19200 | B195: 4325 | C195: 5233.25 | D195: =VLOOKUP(A195,'Correcties op staffel'!$A$5:$C$10,2) -> 0.1 | E195: =VLOOKUP(A195,'Correcties op staffel'!$A$5:$C$10,3) -> -125 | F195: 4632.5 | H195: 19200 | I195: 4633 | J195: 5605.93 | L195: 19200 | M195: 4635 | N195: 5608.35
A196: 19300 | B196: 4325 | C196: 5233.25 | D196: =VLOOKUP(A196,'Correcties op staffel'!$A$5:$C$10,2) -> 0.1 | E196: =VLOOKUP(A196,'Correcties op staffel'!$A$5:$C$10,3) -> -125 | F196: =B196*(1+D196)+E196 -> 4632.5 | H196: 19300 | I196: =ROUND(F196,0) -> 4633 | J196: 5605.93 | L196: 19300 | M196: 4635 | N196: 5608.35
A197: 19400 | B197: 4325 | C197: 5233.25 | D197: =VLOOKUP(A197,'Correcties op staffel'!$A$5:$C$10,2) -> 0.1 | E197: =VLOOKUP(A197,'Correcties op staffel'!$A$5:$C$10,3) -> -125 | F197: 4632.5 | H197: 19400 | I197: 4633 | J197: =I197*1.21 -> 5605.93 | L197: 19400 | M197: =IF(ROUND(I197/5,0)*5<I197,ROUND(I197/5,0)*5+5,ROUND(I197/5,0)*5) -> 4635 | N197: =M197*1.21 -> 5608.35
A198: 19500 | B198: 4325 | C198: 5233.25 | D198: =VLOOKUP(A198,'Correcties op staffel'!$A$5:$C$10,2) -> 0.1 | E198: =VLOOKUP(A198,'Correcties op staffel'!$A$5:$C$10,3) -> -125 | F198: 4632.5 | H198: 19500 | I198: 4633 | J198: 5605.93 | L198: 19500 | M198: 4635 | N198: 5608.35
A199: 19600 | B199: 4325 | C199: 5233.25 | D199: =VLOOKUP(A199,'Correcties op staffel'!$A$5:$C$10,2) -> 0.1 | E199: =VLOOKUP(A199,'Correcties op staffel'!$A$5:$C$10,3) -> -125 | F199: 4632.5 | H199: 19600 | I199: 4633 | J199: 5605.93 | L199: 19600 | M199: 4635 | N199: 5608.35
A200: 19700 | B200: 4325 | C200: 5233.25 | D200: =VLOOKUP(A200,'Correcties op staffel'!$A$5:$C$10,2) -> 0.1 | E200: =VLOOKUP(A200,'Correcties op staffel'!$A$5:$C$10,3) -> -125 | F200: 4632.5 | H200: 19700 | I200: 4633 | J200: 5605.93 | L200: 19700 | M200: 4635 | N200: 5608.35
... 4300 more rows

Sheet Berekening BGK
G1: toevoeging voor PIV rekenmodule | K1: De berekening
B2: Convenant BGK Letsel (belangenbehartigers) | K2: Afronding invoer naar boven | N2: =ROUNDDOWN(C6/100,0)*100 -> 0 | P2: Letop, voor 2016 afgerond op € 100 naar boven, wat dubbel was met afronding bgk naar boven op € 100.
B3: ="Berekening BGK, versie van "&H5&" geldend vanaf " &H6 -> Berekening BGK, versie van 24-12-2015 geldend vanaf 1-1-2016 | K3: BGK excl btw | N3: =IF(N2<0,0,IF(N2<100,'kosten tabel 2016'!M4,IF(N2>'kosten tabel 2016'!L10003,"Bedrag te hoog",VLOOKUP(N2,'kosten tabel 2016'!L4:N10003,2,FALSE)))) -> 480 | P3: Per 2016 afronding naar beneden ivm ophogingen en verlagingen vanaf hele bedragen, anders zou vanaf € 100 minder opgehoogd of verlaagd worden.
B4: =IF(H38<1,"",H36) -> VUL EEN BEDRAG IN | K4: bgk incl btw | N4: =IF(N2<0,0,IF(N2<100,'kosten tabel 2016'!N4,IF(N2>'kosten tabel 2016'!L10003,"Bedrag te hoog",VLOOKUP(N2,'kosten tabel 2016'!L4:N10003,3,FALSE)))) -> 580.8 | P4: Daarom ook een correctie bij bedragen onder € 100, die worden gesteld op € 100.
B5: =IF(H21<1,"Invoer",H19) -> Invoer | G5: Versie | H5: 24-12-2015
B6: In te voeren schadebedrag | G6: vanaf | H6: 1-1-2016
G7: Bruikbaar tot | H7: 1-3-2017 | I7: later raadpleegbaar
B8: Resultaat | G8: Geldig tot | H8: 1-1-2017
B9: Buitengerechtelijke kosten excl. BTW | C9: =IF(H38>0,"invoer onjuist",N3) -> invoer onjuist
B10: Buitengerechtelijke kosten incl. BTW | C10: =IF(H38>0,"invoer onjuist",N4) -> invoer onjuist
G11: Errorhandling
H12: Waarschuwingen
H13: =IF(NOW()>H7,1,"") ->  | I13: VERVANG DE MODULE
H14: =IF(NOW()>H8,1,"") ->  | I14: ="DE MODULE IS GELDIG TOT "& TEXT(H8,"dd-mm-jj") -> DE MODULE IS GELDIG TOT 01-01-17
H15: =IF(C6>250000,1,"") ->  | I15: DE OVEREENKOMST GELDT TOT € 250.000
H19: =IF(ISERROR(VLOOKUP(1,H13:I17,2,FALSE))=TRUE,"",VLOOKUP(1,H13:I17,2,FALSE)) -> 
H21: =SUM(H13:H17) -> 0 | I21: Controle aanwezigheid fout voor niet zichtbaar resultaat.
H26: Fouten
H27: =IF(NOW()>H7,1,"") ->  | I27: DE MODULE IS NIET MEER BRUIKBAAR
H28: =IF(ISERROR(VALUE(C6))=TRUE,1,"") ->  | I28: GEEN GETAL INGEVULD
H29: =IF(C6="",1,"") -> 1 | I29: VUL EEN BEDRAG IN
H30: =IF(C6<=0,1,"") -> 1 | I30: VUL EEN POSITIEF BEDRAG IN
H31: =IF(C6>1000000,1,"") ->  | I31: DE TABEL GAAT TOT € 1.000.000
H36: =IF(ISERROR(VLOOKUP(1,H27:I35,2,FALSE))=TRUE,"",VLOOKUP(1,H27:I35,2,FALSE)) -> VUL EEN BEDRAG IN
H38: =SUM(H27:H35) -> 2 | I38: Controle aanwezigheid fout voor niet zichtbaar resultaat.
